Cogmind - Beta 16 @@@ ROGUE MODE // 2025.11.17 @ 15:04:11 Player: Mozco Result: Self-destructed Performance ------------- Evolutions (5) 2500 Regions Visited (16) 3200 Robots Destroyed (226) 1130 Value Destroyed (8512) 8512 Prototype IDs (32) 640 Alien Tech Used (0) 0 Bonus (7225) 7225 TOTAL SCORE: 23207 Bonus ------- Triggered High Security 500 High Alert Combat Kills 2359 Follower Combat Kills 2871 Network Hubs Disabled 200 Met Data Miner 300 Built Enhanced Grunts 300 A7 Reached Mainframe 300 Met R17 at Cetus 500 Friendly Fire -105 Cogmind --------- Core Integrity 404/1000 Matter 22/300 Energy 2/200 System Corruption 8% Temperature Cool (0) Movement Walking (260) Ox2 Location -5/Upper Caves Parts ------- > --- POWER (1) -------- Cold Fusion Reactor > --- PROPULSION (6) --- Carbon-fiber Leg Flexi-carbon Leg > --- UTILITY (8) ------ High-capacity Storage Unit Advanced Terrain Scan Processor Improved Transmission Jammer Layered Medium Armor Plating Improved Powered Armor Improved Force Field > --- WEAPON (2) ------- Wave Gun Mini Smartbomb Launcher > --- INVENTORY (20) --- Cold Fusion Reactor Quantum Reactor Advanced Heat Sink Coolant Injector Advanced Energy Well (500) Improved Weapon Cycler Improved Transmission Jammer Centrium Medium Armor Plating Improved Focal Shield Dynamic Insulation System Heavy Laser Plasma Rifle Plasma Rifle Wave Gun Wave Gun Variable Charge Gun Advanced Variable Charge Gun Heavy Phase Cannon Long-range Missile Launcher Peak State ------------ > --- POWER ------------ Quantum Reactor > --- PROPULSION ------- Flexi-carbon Leg Flexi-carbon Leg Flexi-carbon Leg Flexi-carbon Leg Enhanced Flexi-carbon Leg Enhanced Flexi-carbon Leg > --- UTILITY ---------- Improved Cryofiber Web High-capacity Storage Unit Advanced Signal Interpreter Advanced Terrain Scanner Centrium Medium Armor Plating Experimental Thermal Shield Improved Hacking Suite Improved System Shield > --- WEAPON ----------- Cooled Pulse Rifle Advanced Variable Charge Gun > --- INVENTORY -------- Quantum Reactor Flexi-carbon Leg Flexi-carbon Leg Enhanced Flexi-carbon Leg Advanced Heat Sink Coolant Injector Advanced Energy Well Experimental Sensor Array Weapon Cycler Transmission Jammer Centrium Medium Armor Plating Reactive Plating Dynamic Insulation System Improved System Restoration Module Wave Gun Advanced Variable Charge Gun Cooled Particle Cannon Neutron Cannon Long-range Missile Launcher [Rating: 111] Favorites ----------- Power Heavy Deuterium Engine Engine Heavy Deuterium Engine Power Core Enhanced Nuclear Core Reactor Quantum Reactor Propulsion Aluminum Leg Leg Aluminum Leg Utility High-capacity Storage Unit Device Experimental Sensor Array Storage High-capacity Storage Unit Processor Advanced Signal Interpreter Hackware Improved Hacking Suite Protection Reactive Plating Weapon Heavy Particle Gun Energy Gun Heavy Particle Gun Energy Cannon Cooled Particle Cannon Ballistic Gun Light Assault Rifle Launcher Missile Launcher Build | -11 -10 -10 -9 -8 -7 -7 -7 -7 -6 -6 -6 -6 -6 -6 -5 -5 ------- Run | Yrd Mat Min Mat Mat Fac Low Low Dat Pro Fac Ext Cet Arc Hub Fac Upp Slots Evolved 10 | . . . 2 2 2 . . . . 2 . . . . 2 . Power . | . . . . . . . . . . . . . . . . . Propulsion 4 | . . . 1 1 2 . . . . . . . . . . . Utility 6 | . . . 1 1 . . . . . 2 . . . . 2 . Weapon . | . . . . . . . . . . . . . . . . . Parts Attached 201 | 6 4 3 14 9 37 3 1 . . 8 38 6 8 14 44 6 Power 20 | 1 1 . 3 1 3 . . . . 2 . 1 1 . 7 . Engine 9 | 1 1 . 3 1 1 . . . . 2 . . . . . . Core 6 | . . . . . 2 . . . . . . . . . 4 . Reactor 5 | . . . . . . . . . . . . 1 1 . 3 . Propulsion 74 | 2 2 2 3 1 14 1 . . . . 26 1 . 9 13 . Treads . | . . . . . . . . . . . . . . . . . Leg 74 | 2 2 2 3 1 14 1 . . . . 26 1 . 9 13 . Wheel . | . . . . . . . . . . . . . . . . . Hover . | . . . . . . . . . . . . . . . . . Flight . | . . . . . . . . . . . . . . . . . Utility 66 | 1 1 . 4 4 12 1 . . . 4 8 2 3 4 17 5 Device 33 | . 1 . . 2 5 1 . . . 1 4 . 3 1 12 3 Storage 5 | 1 . . 2 . 1 . . . . . . . . 1 . . Processor 7 | . . . 1 . 2 . . . . 1 1 . . . 2 . Hackware 3 | . . . . . . . . . . . . . . 2 1 . Protection 18 | . . . 1 2 4 . . . . 2 3 2 . . 2 2 Artifact . | . . . . . . . . . . . . . . . . . Weapon 41 | 2 . 1 4 3 8 1 1 . . 2 4 2 4 1 7 1 Energy Gun 24 | 1 . 1 2 2 5 1 . . . 1 2 1 4 . 4 . Energy Cannon 5 | . . . . . 2 . . . . . 1 . . . 2 . Ballistic Gun 3 | 1 . . 1 . . . . . . . . 1 . . . . Ballistic Cannon . | . . . . . . . . . . . . . . . . . Launcher 9 | . . . 1 1 1 . 1 . . 1 1 . . 1 1 1 Special Weapon . | . . . . . . . . . . . . . . . . . Impact Weapon . | . . . . . . . . . . . . . . . . . Slashing Weapon . | . . . . . . . . . . . . . . . . . Piercing Weapon . | . . . . . . . . . . . . . . . . . Special Melee Weapon . | . . . . . . . . . . . . . . . . . Unidentified Prototypes 22 | . . . 1 1 4 1 . . . 3 2 3 . 3 4 . Corrupted Parts 2 | . . . . . . . . . . . . . 2 . . . System Corruption 4 | . . . . . . . . . . . . . 4 . . . Parts Lost 63 | . 1 . 1 3 12 . . . . 4 8 . . 1 26 7 Power 5 | . 1 . . 1 . . . . . . . . . . 3 . Propulsion 37 | . . . . 1 9 . . . . 4 7 . . . 15 1 Utility 15 | . . . . 1 2 . . . . . 1 . . . 6 5 Weapon 6 | . . . 1 . 1 . . . . . . . . 1 2 1 Highest Loss Streak 5 | . 1 . 1 2 5 . . . . 4 3 . . 1 4 3 To Critical Strikes 1 | . . . . . . . . . . . . . . . 1 . Average Backups 17 | 1 3 5 11 18 19 19 20 20 20 19 19 19 19 19 18 18 Power 1 | . . . 1 . . 1 1 1 1 . 1 1 1 1 1 2 Propulsion 1 | . . 2 5 4 . 1 1 1 1 . . 3 2 2 1 . Utility 8 | . . . 2 5 11 10 10 11 11 10 11 10 10 11 10 7 Weapon 6 | . 1 2 1 7 6 7 7 7 7 7 6 5 6 5 6 9 Tool/Special . | . . . . . . . . . . . . . . . . . Unused Backups 22 | . . . 1 2 1 . . . . . 1 1 . 1 5 10 Power 4 | . . . 1 . 1 . . . . . . . . . 1 1 Propulsion . | . . . . . . . . . . . . . . . . . Utility 9 | . . . . 1 . . . . . . 1 1 . 1 1 4 Weapon 9 | . . . . 1 . . . . . . . . . . 3 5 Tool/Special . | . . . . . . . . . . . . . . . . . Average Slot Usage (%) 93 | . 89 100 96 97 91 99 100 100 100 81 94 100 100 99 91 62 Engine 5 | . 12 14 11 8 3 7 7 7 7 6 6 4 . . . . Reactor 1 | . . . . . . . . . . . . 1 6 6 2 5 Leg 34 | . 28 28 32 35 39 46 46 46 46 22 36 40 40 39 28 13 Device 12 | . 5 14 8 9 10 7 7 7 7 18 15 13 19 13 20 11 Storage 7 | . 14 14 12 9 7 7 7 7 7 6 6 6 6 6 5 5 Processor 6 | . . . 2 1 6 7 7 7 7 6 6 6 6 6 10 7 Protection 5 | . . . 6 14 3 6 7 7 7 6 8 12 6 . 3 5 Energy Gun 10 | . 14 14 10 13 12 . 7 7 7 12 12 11 13 9 9 4 Energy Cannon 1 | . . . . . . 8 3 . . . . . . . . 4 Ballistic Gun 1 | . 14 14 9 . . . . . . . . . . . . . Launcher 1 | . . . 1 4 . 5 3 7 7 . . . . 1 . . Peak Build Rating 111 | 6 9 15 18 33 45 48 48 45 45 55 73 84 93 96 111 77 Average Rating 52 | 4 7 11 15 24 37 46 44 45 45 49 65 78 86 90 87 65 On Entrance 45 | . 6 9 15 18 33 45 46 45 45 45 48 73 84 88 95 79 Avg Prop Armor Cover (%) 9 | . . . . . 9 . . . . . . . . . . . Naked Turns . | . . . . . . . . . . . . . . . . . Heaviest Build 95 | 13 14 17 58 70 70 76 73 71 71 73 78 88 89 78 93 95 Greatest Support 136 | 20 20 20 30 45 75 73 73 68 68 68 105 110 110 136 136 50 Greatest Overweight (x) 18 | . . . 1 1 18 1 1 1 1 2 2 . . . 4 2 Average Overweight (x) . | . . . . 1 . . . 1 1 1 . . . . . 1 Largest Inventory Capacity 20 | 8 8 8 20 20 20 20 20 20 20 20 20 20 20 20 20 20 Average Capacity 18 | 6 8 8 19 20 20 20 20 20 20 20 20 20 20 20 20 20 Most Carried 20 | 2 5 8 19 20 20 20 20 20 20 20 20 20 20 20 20 20 Average Carried 17 | 1 3 5 11 18 19 19 19 20 20 19 19 19 19 19 19 18 Final Capacity 20 | 8 8 8 20 20 20 20 20 20 20 20 20 20 20 20 20 20 Final Carried 20 | 2 4 8 17 20 20 20 20 20 20 20 20 20 20 20 20 19 Class Distribution -------------------- 66% | Scavenger-Mutant 22% | Mutant 7% | Commander-Mutant 3% | Scavenger-Skirmisher Dominant Class ---------------- Mutant | -10/Materials Mutant | -10/Mines Scavenger-Mutant | -9/Materials Scavenger-Mutant | -8/Materials Scavenger-Mutant | -7/Factory Scavenger-Mutant | -7/Lower Caves Scavenger-Mutant | -7/Lower Caves Scavenger-Mutant | -7/Data Miner Scavenger-Mutant | -6/Proximity Caves Mutant | -6/Factory Commander-Mutant | -6/Extension Scavenger-Mutant | -6/Cetus Scavenger-Mutant | -6/Archives Scavenger-Mutant | -6/Hub_04(d) Scavenger-Mutant | -5/Factory Mutant | -5/Upper Caves Resources | -11 -10 -10 -9 -8 -7 -7 -7 -7 -6 -6 -6 -6 -6 -6 -5 -5 ----------- Run | Yrd Mat Min Mat Mat Fac Low Low Dat Pro Fac Ext Cet Arc Hub Fac Upp Matter Collected 4124 | 179 136 43 282 181 662 88 115 . . 113 619 125 146 309 950 176 Remotely . | . . . . . . . . . . . . . . . . . Salvage Created 8912 | . 127 114 651 312 1742 196 122 . . 287 853 . 504 483 3191 330 Parts 389 | . 8 4 46 18 66 15 11 . . 18 29 . 26 27 112 9 Haulers Intercepted 12 | . . . 1 . 6 . . . . 1 . . . . 3 1 Recyclers Shooed 11 | . . . 1 . 2 . . . . . 4 . . . 4 . Parts Field Recycled . | . . . . . . . . . . . . . . . . . Retrieved Matter . | . . . . . . . . . . . . . . . . . Parts Self-Destructed 34 | . . . . . . 15 15 . . . . . . . . 4 Prevented . | . . . . . . . . . . . . . . . . . Parts Restored 1 | . . . . . 1 . . . . . . . . . . . Broken 1 | . . . . . 1 . . . . . . . . . . . Kills | -11 -10 -10 -9 -8 -7 -7 -7 -7 -6 -6 -6 -6 -6 -6 -5 -5 ------- Run | Yrd Mat Min Mat Mat Fac Low Low Dat Pro Fac Ext Cet Arc Hub Fac Upp Combat Hostiles Destroyed 168 | . 5 3 18 10 24 6 10 . . 6 12 . 3 11 49 11 Guns 85 | . 5 3 9 5 21 . . . . 3 8 . 3 4 23 1 Cannons 8 | . . . . . . 3 2 . . . . . . . 2 1 AOE 69 | . . . 9 5 2 3 8 . . 3 3 . . 7 20 9 Classes Destroyed 19 | . 2 . 5 3 4 1 1 . . . 1 . . 1 1 . Worker 10 | . . . 1 . 4 . . . . . . . . 1 4 . Builder 8 | . . . . 1 . . . . . . . . . 1 6 . Tunneler 2 | . . . 1 . . . . . . . . . . 1 . . Hauler 12 | . . . 1 . 6 . . . . 1 . . . . 3 1 Recycler 10 | . . . 1 . 3 . . . . . 2 . . . 4 . Minesweeper 1 | . . . . . . 1 . . . . . . . . . . Mechanic 3 | . . . . . 1 . . . . 1 . . . . 1 . Operator 11 | . . . . 1 . . . . . . 1 . 9 . . . Watcher 1 | . . . . . . . . . . . . . . . 1 . Swarmer 35 | . 3 . 8 4 2 4 8 . . . 3 . . . 2 1 Saboteur 3 | . . . . . . . . . . . . . . 1 2 . Grunt 84 | . 2 3 5 2 14 . . . . 3 3 . . 9 34 9 Brawler 2 | . . . . . 2 . . . . . . . . . . . Duelist 5 | . . . . . 1 . . . . . 1 . . 1 1 1 Protector 1 | . . . . . . . . . . . 1 . . . . . Sentry 20 | . . . 5 2 1 1 . . . 2 4 . 3 . 2 . Hunter 10 | . . . . 2 2 1 1 . . . . . . . 4 . Programmer 7 | . . . . . 2 . . . . 1 . . . . 4 . Mutant 1 | . . . . . . . 1 . . . . . . . . . Best Kill Streak 9 | . 3 1 6 5 5 4 4 . . 5 3 . 4 5 9 6 Combat Bots Only 6 | . 3 1 4 5 4 4 4 . . 4 3 . 3 4 6 5 Max Kills in Single Turn 4 | . 1 1 3 2 1 3 4 . . 1 3 . 1 4 4 3 Gunslinging . | . . . . . . . . . . . . . . . . . Exploded 4 | . . . 2 2 1 3 4 . . 1 3 . . 3 2 3 Melee . | . . . . . . . . . . . . . . . . . Uniques/NPCs Destroyed . | . . . . . . . . . . . . . . . . . Combat | -11 -10 -10 -9 -8 -7 -7 -7 -7 -6 -6 -6 -6 -6 -6 -5 -5 -------- Run | Yrd Mat Min Mat Mat Fac Low Low Dat Pro Fac Ext Cet Arc Hub Fac Upp Hostile Shots Fired 1400 | . 42 13 69 75 269 40 35 . . 112 275 40 6 21 364 39 Missed 458 | . 13 4 22 8 79 15 6 . . 54 106 12 2 6 123 8 Hits 942 | . 29 9 47 67 190 25 29 . . 58 169 28 4 15 241 31 Melee 17 | . . . . . 8 . . . . . 1 . . . 2 6 Projectile 925 | . 29 9 47 67 182 25 29 . . 58 168 28 4 15 239 25 Critical Strikes 29 | . . 1 1 1 3 . . . . 1 . 5 . 2 15 . Damage Taken 13786 | . 354 134 551 841 2522 197 330 . . 481 1370 475 86 550 4819 1076 Core 1781 | . 78 29 110 169 366 38 56 . . 40 140 85 . 74 473 123 Absorbed by Shields 764 | . . . . 150 76 29 45 . . 123 164 156 . . . 21 Redirected to Shielding 145 | . . . . 20 . . . . . 16 109 . . . . . Ignored by Resistances 896 | . . . . 89 71 48 108 . . 14 28 127 10 36 365 . Regen/Repaired (Parts) 88 | . . . . . 88 . . . . . . . . . . . Core Remaining (%) 65 | 100 . 57 72 69 . . . . 34 . . . . 60 . . Volleys Fired 670 | . 22 13 42 32 149 18 15 . 1 28 63 16 54 33 163 21 Largest 2 | . 2 2 2 2 2 2 2 . 1 2 2 2 2 2 2 2 Hottest 300 | . 70 95 105 119 110 85 85 . 36 115 101 260 161 120 300 171 Shots Fired 1171 | . 44 26 78 54 259 26 22 . 1 39 125 32 106 43 288 28 Gun 1037 | . 44 26 72 50 254 3 7 . . 28 124 23 106 33 261 6 Cannon 64 | . . . . . . 22 9 . . 1 . 9 . 3 8 12 Launcher 70 | . . . 6 4 5 1 6 . 1 10 1 . . 7 19 10 Special . | . . . . . . . . . . . . . . . . . Kinetic 70 | . 22 13 35 . . . . . . . . . . . . . Thermal 1031 | . 22 13 37 50 254 25 16 . . 29 124 32 106 36 269 18 Explosive 70 | . . . 6 4 5 1 6 . 1 10 1 . . 7 19 10 Electromagnetic . | . . . . . . . . . . . . . . . . . Robot Hit Streak 16 | . 5 7 15 10 13 7 11 . . 9 16 7 7 6 16 12 Robot Miss Streak 7 | . 3 2 2 4 3 3 1 . . 4 2 7 4 2 4 1 Penetration Max . | . . . . . . . . . . . . . . . . . Secondary Targets 7 | . 1 . . . 1 . . . . . 1 . . . 4 . Max Gunslinging Chain 1 | . 1 . . . 1 . . . . . 1 . . . 1 . Shots Hit Robots 785 | . 26 20 50 33 180 16 15 . . 19 105 19 62 28 195 17 Core Hits 455 | . 10 6 37 22 68 12 14 . . 28 37 8 28 31 127 27 Critical Kills . | . . . . . . . . . . . . . . . . . Critical Parts Destroyed . | . . . . . . . . . . . . . . . . . Critical Strikes 37 | . 1 2 1 2 7 . . . . 1 10 1 2 1 9 . Burn 37 | . 1 2 1 2 7 . . . . 1 10 1 2 1 9 . Melee Attacks . | . . . . . . . . . . . . . . . . . Impact . | . . . . . . . . . . . . . . . . . Slashing . | . . . . . . . . . . . . . . . . . Piercing . | . . . . . . . . . . . . . . . . . Sneak Attacks . | . . . . . . . . . . . . . . . . . Combat Hostiles . | . . . . . . . . . . . . . . . . . Follow-up Attacks . | . . . . . . . . . . . . . . . . . Damage Inflicted 26960 | . 252 260 1322 902 3913 501 1081 . . 1023 2421 482 1652 2040 8598 2513 Guns 15217 | . 250 260 794 513 3500 16 93 . . 336 2122 345 1652 534 4700 102 Cannons 1064 | . . . . . . 403 165 . . . . 137 . 57 127 175 Explosions 10647 | . . . 528 389 403 82 823 . . 687 299 . . 1449 3751 2236 Melee . | . . . . . . . . . . . . . . . . . Ramming 32 | . 2 . . . 10 . . . . . . . . . 20 . Kinetic 363 | . 101 73 189 . . . . . . . . . . . . . Thermal 15918 | . 149 187 605 513 3500 419 258 . . 336 2122 482 1652 591 4827 277 Explosive 10647 | . . . 528 389 403 82 823 . . 687 299 . . 1449 3751 2236 Electromagnetic . | . . . . . . . . . . . . . . . . . Impact . | . . . . . . . . . . . . . . . . . Slashing . | . . . . . . . . . . . . . . . . . Piercing . | . . . . . . . . . . . . . . . . . Highest Corruption 9 | . . . . 6 5 5 . . . . 1 1 5 1 7 9 Average Corruption 2 | . . . . 2 3 1 . . . . 1 1 1 1 3 7 Corruption Purged 18 | . . . . . . 5 . . . . . . 5 . 4 4 Corruption Blocked 4 | . . . . . . . . . . . 4 . . . . . Effects 75 | . . . . 12 18 . . . . . 5 3 5 1 15 16 Message Errors 15 | . . . . 2 5 . . . . . 1 1 1 . 1 4 Matter Fused 16 | . . . . 5 2 . . . . . 1 1 1 . 4 2 Heat Flow Errors 9 | . . . . 1 1 . . . . . . 1 . . 5 1 Energy Discharges 13 | . . . . 2 5 . . . . . 2 . 2 . 1 1 Parts Rejected 2 | . . . . . 1 . . . . . . . . . . 1 Data Loss (minor) 8 | . . . . . 2 . . . . . 1 . . . 3 2 Data Loss (major) 4 | . . . . . . . . . . . . . 1 . 1 2 Misfires 3 | . . . . . 1 . . . . . . . . . . 2 Alerts 2 | . . . . . 1 . . . . . . . . 1 . . Weapon Failures 3 | . . . . 2 . . . . . . . . . . . 1 Overload Shots 30 | . . . . . . . . . . 8 . 1 . 11 10 . Effects 1 | . . . . . . . . . . . . . . 1 . . Short Circuit 1 | . . . . . . . . . . . . . . 1 . . Overflow Damage 458 | . . . 38 16 . 20 83 . . 6 12 . . 57 181 45 Projectiles 20 | . . . . . . 20 . . . . . . . . . . Explosions 438 | . . . 38 16 . . 83 . . 6 12 . . 57 181 45 Melee . | . . . . . . . . . . . . . . . . . Knockbacks . | . . . . . . . . . . . . . . . . . Impact . | . . . . . . . . . . . . . . . . . Kinetic . | . . . . . . . . . . . . . . . . . Secondary . | . . . . . . . . . . . . . . . . . Self-Inflicted Damage 486 | . . . 13 . . . 13 . . 81 . . . . 327 52 Shots 12 | . . . 1 . . . 1 . . 3 . . . . 6 1 Rammed . | . . . . . . . . . . . . . . . . . Targets Rammed 4 | . 1 . . . 2 . . . . . . . . . 1 . Kicked 4 | . 1 . . . 2 . . . . . . . . . 1 . Crushed . | . . . . . . . . . . . . . . . . . Highest Temperature 428 | . 156 127 54 428 350 70 90 . . 48 12 303 226 51 260 334 Average Temperature 70 | . 67 54 22 105 69 38 38 . . 16 5 112 99 20 61 106 Received Heat Transfer 3855 | . 96 96 138 119 857 28 . . . 173 334 49 18 153 1637 157 Effects 3 | . . . . 2 1 . . . . . . . . . . . Shutdowns 1 | . . . . 1 . . . . . . . . . . . . Energy Bleed 1 | . . . . 1 . . . . . . . . . . . . Short Circuit 1 | . . . . . 1 . . . . . . . . . . . Siege Activations . | . . . . . . . . . . . . . . . . . Martial Activations . | . . . . . . . . . . . . . . . . . Shielding Activations . | . . . . . . . . . . . . . . . . . Robots Disrupted . | . . . . . . . . . . . . . . . . . Combat Hostiles . | . . . . . . . . . . . . . . . . . Robots Corrupted . | . . . . . . . . . . . . . . . . . Combat Hostiles . | . . . . . . . . . . . . . . . . . Parts Fried . | . . . . . . . . . . . . . . . . . Impact Corruptions . | . . . . . . . . . . . . . . . . . Robots Melted 6 | . . . . . 1 . . . . . 1 . . . 4 . Combat Hostiles 6 | . . . . . 1 . . . . . 1 . . . 4 . Parts Melted 54 | . 1 2 2 4 9 2 . . . . 9 . 5 1 18 1 Heat Transferred 29295 | . 518 518 1221 1295 7178 592 407 . . 679 4608 814 2553 990 7589 333 Parts Sabotaged 4 | . . . . . . . . . . . . . . . 4 . Parts Stolen . | . . . . . . . . . . . . . . . . . Parts Stripped . | . . . . . . . . . . . . . . . . . Power Chain Reactions . | . . . . . . . . . . . . . . . . . Alert | -11 -10 -10 -9 -8 -7 -7 -7 -7 -6 -6 -6 -6 -6 -6 -5 -5 ------- Run | Yrd Mat Min Mat Mat Fac Low Low Dat Pro Fac Ext Cet Arc Hub Fac Upp Maximum Alert Level 5 | . . . 1 . . . . . . 1 2 2 1 5 5 . Low Security (%) 62 | 100 100 100 98 100 100 . . . . 88 70 . 3 3 . . Level 1 9 | . . . 1 . . . . . . 11 10 43 96 18 . . Level 2 5 | . . . . . . . . . . . 19 56 . 13 . . Level 3 7 | . . . . . . . . . . . . . . 22 34 . Level 4 8 | . . . . . . . . . . . . . . 18 39 . Level 5 4 | . . . . . . . . . . . . . . 22 17 . High Security 1 | . . . . . . . . . . . . . . . 7 . Max Security . | . . . . . . . . . . . . . . . . . Peak Influence 1865 | . 61 48 205 164 153 . . . . 257 614 479 326 1793 1865 . Initial 878 | . . . . 42 20 . . . . . 2 343 172 77 878 . Average 402 | . 15 6 81 69 103 . . . . 86 161 404 281 976 1362 . Influence Increases 8950 | . 135 102 514 349 778 145 210 . . 421 1532 326 299 2092 1812 235 Destroy 0b10 Robot/C 4560 | . 100 80 360 200 480 120 180 . . 120 740 160 80 740 980 220 Destroy 0b10 Robot/NC 335 | . . . 20 10 70 5 . . . 10 20 10 45 45 95 5 Destroy Leader 800 | . 20 20 92 60 102 20 30 . . 40 70 . . 158 178 10 Allied During Kill 1497 | . . 2 . . . . . . . . 574 123 108 690 . . Successful Hack 138 | . 15 . 2 . 39 . . . . 13 30 . . . 39 . Select Force Hacks 50 | . . . . . . . . . . . . . . 50 . . Disable Machine 360 | . . . . 15 75 . . . . 30 30 15 60 75 60 . Anti-Garrison Action 550 | . . . . . . . . . . 150 . . . 200 200 . Destroy Structure 585 | . . . 40 34 12 . . . . 58 38 18 6 119 260 . Partial Spotted 15 | . . . . . . . . . . . . . . 15 . . Lose Combat Pursuer 60 | . . . . 30 . . . . . . 30 . . . . . Influence Decreases 7900 | . 135 102 413 405 719 249 136 74 . 416 923 509 509 520 1770 1020 Entered New Map 2470 | . . . . 59 25 40 . 74 . . 3 271 259 144 915 680 Time Decay 4028 | . 135 82 261 316 574 209 136 . . 376 400 198 230 246 595 270 Lost Part 590 | . . . 10 30 120 . . . . 40 50 . . 10 260 70 Lost Ally 520 | . . 20 . . . . . . . . 320 40 20 120 . . Purge Threat 292 | . . . 142 . . . . . . . 150 . . . . . Squads Dispatched 49 | . . . 1 1 7 . . . . 6 2 . . 12 20 . Investigation 10 | . . . . . 2 . . . . 1 . . . 4 3 . Extermination 7 | . . . . . 3 . . . . 2 . . . . 2 . Reinforcement 15 | . . . 1 1 2 . . . . . 1 . . 5 5 . Assault 14 | . . . . . . . . . . 2 1 . . 1 10 . Garrison 3 | . . . . . . . . . . 1 . . . 2 . . Intercept . | . . . . . . . . . . . . . . . . . Searches Triggered . | . . . . . . . . . . . . . . . . . Data Miner Redirects 6 | . . . . . . . . . . 1 . . . 1 4 . Construction Impeded 1 | . . . . . . . . . . . . . . 1 . . Haulers Reinforced 4 | . . . . . 1 . . . . . . . . . 3 . Active Scanning Responses . | . . . . . . . . . . . . . . . . . Cargo Convoy Interrupts 1 | . . . . . . . . . . 1 . . . . . . Stealth | -11 -10 -10 -9 -8 -7 -7 -7 -7 -6 -6 -6 -6 -6 -6 -5 -5 --------- Run | Yrd Mat Min Mat Mat Fac Low Low Dat Pro Fac Ext Cet Arc Hub Fac Upp Distress Signals 12 | . . . 2 1 1 . . . . . 2 2 . 2 1 1 Communications Jammed 5 | . . . . . 3 . . . . . 2 . . . . . Distress Signals 3 | . . . . . 1 . . . . . 2 . . . . . Times Spotted 336 | . 9 4 35 16 34 5 10 . . 7 42 10 28 36 85 15 Peak Tracking Total 12 | . 4 2 7 4 4 4 4 . . 4 6 5 2 5 12 7 Tactical Retreats 4 | . . . . 2 . . . . . . 2 . . . . . Traps | -11 -10 -10 -9 -8 -7 -7 -7 -7 -6 -6 -6 -6 -6 -6 -5 -5 ------- Run | Yrd Mat Min Mat Mat Fac Low Low Dat Pro Fac Ext Cet Arc Hub Fac Upp Traps Triggered 10 | . 1 . . 1 3 . . . . . 2 . . . 3 . Indirectly . | . . . . . . . . . . . . . . . . . Trap Hack Attempts . | . . . . . . . . . . . . . . . . . Triggered . | . . . . . . . . . . . . . . . . . Disarmed . | . . . . . . . . . . . . . . . . . Reprogrammed . | . . . . . . . . . . . . . . . . . Reused . | . . . . . . . . . . . . . . . . . Traps Extracted . | . . . . . . . . . . . . . . . . . Installed . | . . . . . . . . . . . . . . . . . Triggered . | . . . . . . . . . . . . . . . . . Machines | -11 -10 -10 -9 -8 -7 -7 -7 -7 -6 -6 -6 -6 -6 -6 -5 -5 ---------- Run | Yrd Mat Min Mat Mat Fac Low Low Dat Pro Fac Ext Cet Arc Hub Fac Upp Machines Disabled 28 | . . . . 1 5 . 1 . . 3 4 1 4 5 4 . Max in Single Turn 2 | . . . . 1 2 . 1 . . 1 1 1 1 . 1 . Garrison Access 3 | . . . . . . . . . . 1 . . . 1 1 . Network Hub 1 | . . . . . . . . . . . . . . 1 . . Machines Repaired . | . . . . . . . . . . . . . . . . . Machines Dismantled . | . . . . . . . . . . . . . . . . . Machines Sabotaged 1 | . . . . . . . . . . . . . . 1 . . Overloaded Fab Kills . | . . . . . . . . . . . . . . . . . Hacking | -11 -10 -10 -9 -8 -7 -7 -7 -7 -6 -6 -6 -6 -6 -6 -5 -5 --------- Run | Yrd Mat Min Mat Mat Fac Low Low Dat Pro Fac Ext Cet Arc Hub Fac Upp Machines Accessed 42 | . 2 . 5 1 7 . . 3 1 5 4 1 . 4 9 . Terminals 28 | . 2 . 4 . 6 . . . 1 4 4 1 . 3 3 . Fabricators 1 | . . . . . . . . . . . . . . . 1 . Repair Stations 2 | . . . . . 1 . . . . . . . . . 1 . Recycling Units 2 | . . . . . . . . . . . . . . . 2 . Scanalyzers 3 | . . . 1 1 . . . . . . . . . . 1 . Garrison Access 3 | . . . . . . . . . . 1 . . . 1 1 . Total Hacks 165 | . 7 . 20 5 23 . . 24 1 12 13 3 . 13 44 . Successful 99 | . 3 . 17 4 6 . . 24 1 4 8 . . 7 25 . Failed 65 | . 4 . 2 1 17 . . . . 8 5 3 . 6 19 . Catastrophic 12 | . 1 . . . 5 . . . . 1 2 . . . 3 . Database Lockouts 1 | . . . 1 . . . . . . . . . . . . . Manual 48 | . 6 . 2 . 7 . . . . 3 8 1 . 11 10 . Terminals 93 | . 7 . 7 . 21 . . . 1 9 13 3 . 10 22 . Fabricators 7 | . . . . . . . . . . . . . . . 7 . Repair Stations 4 | . . . . . 2 . . . . . . . . . 2 . Recycling Units 3 | . . . . . . . . . . . . . . . 3 . Scanalyzers 26 | . . . 13 5 . . . . . . . . . . 8 . Garrison Access 8 | . . . . . . . . . . 3 . . . 3 2 . Terminal Hacks 49 | . 1 . 3 . 3 . . 24 1 2 5 . . . 10 . Record 7 | . . . . . . . . 6 1 . . . . . . . Part Schematic 12 | . . . . . 1 . . 9 . 1 1 . . . . . Robot Schematic 6 | . . . . . . . . 6 . . . . . . . . Robot Analysis 5 | . 1 . . . 1 . . . . 1 2 . . . . . Prototype ID Bank 4 | . . . . . . . . 3 . . 1 . . . . . Branch Access Points 1 | . . . . . . . . . . . . . . . 1 . Unreport Threat 2 | . . . 1 . . . . . . . 1 . . . . . Locate Traps 1 | . . . . . 1 . . . . . . . . . . . Security Status 2 | . . . . . . . . . . . . . . . 2 . Transport Status 2 | . . . . . . . . . . . . . . . 2 . Recall Extermination 1 | . . . . . . . . . . . . . . . 1 . Recall Assault 1 | . . . . . . . . . . . . . . . 1 . Hauler Manifests 2 | . . . 1 . . . . . . . . . . . 1 . Registered Components 1 | . . . . . . . . . . . . . . . 1 . Zone Layout 2 | . . . 1 . . . . . . . . . . . 1 . Fabricator Hacks 2 | . . . . . . . . . . . . . . . 2 . Load Schematic 1 | . . . . . . . . . . . . . . . 1 . Build 1 | . . . . . . . . . . . . . . . 1 . Repair Station Hacks 4 | . . . . . 2 . . . . . . . . . 2 . Scan Component 2 | . . . . . 1 . . . . . . . . . 1 . Repair 2 | . . . . . 1 . . . . . . . . . 1 . Recycling Unit Hacks 2 | . . . . . . . . . . . . . . . 2 . Retrieve Components 2 | . . . . . . . . . . . . . . . 2 . Scanalyzer 23 | . . . 13 4 . . . . . . . . . . 6 . Insert Component 10 | . . . 6 2 . . . . . . . . . . 2 . Analyze 12 | . . . 6 2 . . . . . . . . . . 4 . Retrieve Study 1 | . . . 1 . . . . . . . . . . . . . Garrison Access Hacks . | . . . . . . . . . . . . . . . . . Unauthorized Hacks 19 | . 2 . 1 . 1 . . . . 2 3 . . 7 3 . Terminals 17 | . 2 . 1 . 1 . . . . 2 3 . . 6 2 . Assimilate 1 | . . . . . . . . . . . . . . 1 . . Botnet 10 | . 1 . 1 . 1 . . . . 2 2 . . 1 2 . Operators 3 | . 1 . . . . . . . . . 1 . . 1 . . Sabotage 3 | . . . . . . . . . . . . . . 3 . . Fabricators . | . . . . . . . . . . . . . . . . . Repair Stations . | . . . . . . . . . . . . . . . . . Recycling Units . | . . . . . . . . . . . . . . . . . Scanalyzers . | . . . . . . . . . . . . . . . . . Garrison Access 2 | . . . . . . . . . . . . . . 1 1 . Jam 2 | . . . . . . . . . . . . . . 1 1 . Data Cores Recovered . | . . . . . . . . . . . . . . . . . Used . | . . . . . . . . . . . . . . . . . Hacking Detections 33 | . 2 . 3 1 7 . . . 1 5 4 1 . 2 7 . Full Trace Events 6 | . . . . 1 2 . . . . 1 . . . . 2 . Feedback Events . | . . . . . . . . . . . . . . . . . Feedback Blocked . | . . . . . . . . . . . . . . . . . Robot Schematics Acquired 6 | . . . . . . . . 6 . . . . . . . . Robots Built . | . . . . . . . . . . . . . . . . . Authchips . | . . . . . . . . . . . . . . . . . Time . | . . . . . . . . . . . . . . . . . Total Robot Build Rating . | . . . . . . . . . . . . . . . . . Part Schematics Acquired 22 | . . . 6 2 1 . . 9 . 1 1 . . . 2 . Parts Built 2 | . . . . . . . . . . . . . . . 2 . Authchips . | . . . . . . . . . . . . . . . . . Time 53 | . . . . . . . . . . . . . . . 53 . Total Part Build Rating 12 | . . . . . . . . . . . . . . . 12 . Part Studies Acquired 1 | . . . 1 . . . . . . . . . . . . . Parts Repaired 1 | . . . . . 1 . . . . . . . . . . . Time 80 | . . . . . 26 . . . . . . . . . 54 . Parts Recycled . | . . . . . . . . . . . . . . . . . Recycled Matter . | . . . . . . . . . . . . . . . . . Retrieved Matter . | . . . . . . . . . . . . . . . . . Retrieved Components 19 | . . . . . . . . . . . . . . . 19 . Parts Scanalyzed 10 | . . . 6 2 . . . . . . . . . . 2 . Part Schematics Acquired 10 | . . . 6 2 . . . . . . . . . . 2 . Parts Damaged 1 | . . . . . . . . . . . . . . . 1 . Bothacking | -11 -10 -10 -9 -8 -7 -7 -7 -7 -6 -6 -6 -6 -6 -6 -5 -5 ------------ Run | Yrd Mat Min Mat Mat Fac Low Low Dat Pro Fac Ext Cet Arc Hub Fac Upp Used RIF Installer . | . . . . . . . . . . . . . . . . . Robots Hacked . | . . . . . . . . . . . . . . . . . Non-combat . | . . . . . . . . . . . . . . . . . Combat . | . . . . . . . . . . . . . . . . . Robot Hacks Applied . | . . . . . . . . . . . . . . . . . Relay Couplers Released 2 | . . . . . . . . . . 2 . . . . . . Machine Destruction 2 | . . . . . . . . . . 2 . . . . . . Fabnet Peak Effective % . | . . . . . . . . . . . . . . . . . Robots Rewired 18 | . . . . . . . . . . . 18 . . . . . Allies Hacked . | . . . . . . . . . . . . . . . . . Hacks Repelled . | . . . . . . . . . . . . . . . . . Allies | -11 -10 -10 -9 -8 -7 -7 -7 -7 -6 -6 -6 -6 -6 -6 -5 -5 -------- Run | Yrd Mat Min Mat Mat Fac Low Low Dat Pro Fac Ext Cet Arc Hub Fac Upp Total Allies 32 | . . 1 . . . . . . . . 26 5 . . . . Largest Group 13 | . . 1 . . . . . . . . 13 9 8 6 . . Highest-Rated Group 723 | . . 31 . . . . . . . . 482 723 677 503 . . Highest-Rated Ally 159 | . . 31 . . . . . . . . 159 153 146 96 . . Total Orders 2 | . . . . . . . . . . . . . 2 . . . STAY 1 | . . . . . . . . . . . . . 1 . . . FOLLOW 1 | . . . . . . . . . . . . . 1 . . . Ally Attacks 439 | . . 11 . . . . . . . . 219 44 24 141 . . Total Damage 12963 | . . 149 . . . . . . . . 4517 1590 1048 5659 . . Kills 71 | . . 1 . . . . . . . . 27 10 1 32 . . Allies Corrupted 1 | . . . . . . . . . . . . . . 1 . . Allies Melted . | . . . . . . . . . . . . . . . . . Intel | -11 -10 -10 -9 -8 -7 -7 -7 -7 -6 -6 -6 -6 -6 -6 -5 -5 ------- Run | Yrd Mat Min Mat Mat Fac Low Low Dat Pro Fac Ext Cet Arc Hub Fac Upp Active Infowar (turns) 7983 | . . . 199 143 1549 816 533 141 598 1135 811 . 126 310 1038 584 Sensors 4844 | . . . . . . 816 533 141 598 1004 . . 126 310 732 584 Terrain 847 | . . . . . . . . . . . . . . . 610 237 T.N.C. 1891 | . . . 199 143 1549 . . . . . . . . . . . Jamming 2380 | . . . . . 399 . . . . 1135 811 . . . 12 23 Robot Analysis Total 5 | . 1 . . . 1 . . . . 1 2 . . . . . Derelict Logs Recovered 6 | . . 1 . . . . 2 . 2 . . . . . . 1 Drone Launches . | . . . . . . . . . . . . . . . . . Drone Recoveries . | . . . . . . . . . . . . . . . . . Exploration | -11 -10 -10 -9 -8 -7 -7 -7 -7 -6 -6 -6 -6 -6 -6 -5 -5 ------------- Run | Yrd Mat Min Mat Mat Fac Low Low Dat Pro Fac Ext Cet Arc Hub Fac Upp Turns Passed 13662 | 71 430 659 839 758 1759 1010 721 141 598 1135 1475 402 494 538 2048 584 Spaces Moved 7154 | 52 295 492 396 356 880 558 401 79 331 424 801 238 222 343 1051 235 Core 4 | 3 . . . . 1 . . . . . . . . . . . Treads . | . . . . . . . . . . . . . . . . . Legs 7150 | 49 295 492 396 356 879 558 401 79 331 424 801 238 222 343 1051 235 Wheels . | . . . . . . . . . . . . . . . . . Hover . | . . . . . . . . . . . . . . . . . Flight . | . . . . . . . . . . . . . . . . . Fastest Speed 50 | 50 120 120 120 175 110 110 112 180 180 180 115 120 120 120 120 190 Average Speed 150 | 115 120 120 168 176 132 170 168 180 180 236 130 120 120 120 135 218 Slowest Speed 950 | 120 120 120 190 180 950 182 180 180 180 245 245 120 120 120 400 260 Overloaded Moves . | . . . . . . . . . . . . . . . . . Propulsion Burnouts . | . . . . . . . . . . . . . . . . . Robots Hopped . | . . . . . . . . . . . . . . . . . Potential Cave-ins 9 | . . . . . . . . . . . 3 . . 3 1 2 Cave-ins Triggered 3 | . . . . 1 . . . . . . . . . 1 . 1 Exploration Rate (%) 48 | 4 49 97 39 21 22 69 64 68 51 11 86 63 86 27 27 40 Regions Visited 16 Branch Regions 10 Pre-discovered Areas 2 | . . . . . . . . 1 1 . . . . . . . Known Exits Taken 11 | . . . . . 1 1 1 1 1 1 1 1 1 1 1 . Unknown Exits Taken 5 | 1 1 1 1 1 . . . . . . . . . . . . Scrap Searched 7 | . . 1 . . . 3 2 . . . . . . . . 1 Spaces Dug 69 | . . . 4 . 7 . . . 12 2 18 . . 13 8 5 Terrain Destroyed 569 | . . . 41 37 9 14 26 . 12 81 18 2 6 83 152 88 Melee . | . . . . . . . . . . . . . . . . . Projectile 47 | . . . . . . 3 . . . 6 . 2 6 6 17 7 AOE 522 | . . . 41 37 9 11 26 . 12 75 18 . . 77 135 81 Terrain Rammed . | . . . . . . . . . . . . . . . . . Walls Destroyed . | . . . . . . . . . . . . . . . . . Machines Disabled . | . . . . . . . . . . . . . . . . . Actions | -11 -10 -10 -9 -8 -7 -7 -7 -7 -6 -6 -6 -6 -6 -6 -5 -5 --------- Run | Yrd Mat Min Mat Mat Fac Low Low Dat Pro Fac Ext Cet Arc Hub Fac Upp Total 8971 | 59 329 537 492 435 1209 586 425 78 332 514 1126 332 373 426 1447 271 Wait 438 | . 7 25 9 3 85 3 1 . 1 34 39 56 73 13 87 2 Move 7137 | 51 294 491 395 355 879 557 400 78 330 423 800 237 221 342 1050 234 Hop . | . . . . . . . . . . . . . . . . . Pick Up 97 | 2 1 3 10 15 14 . 2 . . 6 5 3 4 3 28 1 Fast Attach 113 | 6 1 . 6 5 22 . . . . 4 23 3 1 4 32 6 Attach 44 | . 1 . 3 6 7 1 1 . . 3 4 1 1 2 13 1 Detach 9 | . . . 3 . 1 . . . . . 1 1 . 1 2 . Swap 157 | . 2 3 13 6 25 7 4 . . 8 19 6 12 15 32 5 Drop 160 | . . 2 11 13 25 . 2 . . 8 31 9 7 13 39 . Fire 670 | . 22 13 42 32 149 18 15 . 1 28 63 16 54 33 163 21 Melee . | . . . . . . . . . . . . . . . . . Ram . | . . . . . . . . . . . . . . . . . Kick 4 | . 1 . . . 2 . . . . . . . . . 1 . Crush . | . . . . . . . . . . . . . . . . . Escape Stasis 4 | . . . . . . . . . . . 3 . . . . 1 Rewire 138 | . . . . . . . . . . . 138 . . . . . Trap . | . . . . . . . . . . . . . . . . . Miscellaneous . | . . . . . . . . . . . . . . . . . Route ------- -11/Scrapyard -10/Materials (discovered 3 exits: *Mat / [*Min x2]) -10/Mines (discovered 3 exits: *Mat x2 / [*Sub]) -9/Materials (discovered 3 exits: *Mat x2 / [*Sto]) -8/Materials -7/Factory (discovered 2 exits: *Fac / *Low) -7/Lower Caves -7/Lower Caves (discovered 2 exits: *Fac / *Dat) -7/Data Miner -6/Proximity Caves -6/Factory (discovered 3 exits: Fac / *Ext x2) -6/Extension (discovered 2 exits: *Fac / *Cet) -6/Cetus (discovered 2 exits: *Fac / *Arc) -6/Archives (discovered 3 exits: *Fac / *Hub x2) -6/Hub_04(d) (discovered 2 exits: *Fac x2) -5/Factory (discovered 3 exits: [Fac] / *Upp x2) -5/Upper Caves History --------- Turn | Location | Event 4 | -11/Scrapyard | Discovered new exit (range 16) 72 | -11/Scrapyard | Entered Materials 165 | -10/Materials | Discovered new exit (range 6) 185 | -10/Materials | Discovered new exit (range 14) 301 | -10/Materials | Build established: Mutant 436 | -10/Materials | Discovered new exit (range 11) 502 | -10/Materials | Entered Mines 534 | -10/Mines | Learned Materials trap positions 646 | -10/Mines | Found a damaged Exp. Sensor Array with a note attached 649 | -10/Mines | Found Prototype Device 736 | -10/Mines | Received a Mining Laser from a helpful Derelict 742 | -10/Mines | Discovered new exit (range 11) 1055 | -10/Mines | Discovered new exit (range 10) 1120 | -10/Mines | Discovered new exit (range 5) 1161 | -10/Mines | Entered Materials 1161 | -9/Materials | Evolved 2 slots: Propulsion x1, Utility x1 1162 | -9/Materials | Loaded intel: 18 trap records 1185 | -9/Materials | Build established: Scavenger-Mutant 1203 | -9/Materials | Discovered new exit (range 2) 1389 | -9/Materials | Discovered new exit (range 5) 1425 | -9/Materials | Central database locked down 1939 | -9/Materials | Discovered new exit (range 10) 2000 | -9/Materials | Entered another Materials area 2000 | -8/Materials | Evolved 2 slots: Propulsion x1, Utility x1 2507 | -8/Materials | Crushed by falling debris 2684 | -8/Materials | Discovered new exit (range 10) 2758 | -8/Materials | Entered Factory 2758 | -7/Factory | Evolved 2 slots: Propulsion x2 3350 | -7/Factory | Lost 4 parts (3n1u) 3870 | -7/Factory | Core integrity fell below 50% 3890 | -7/Factory | Lost 5 parts (3n1u1w) 4152 | -7/Factory | Repaired Aluminum Leg+ 4161 | -7/Factory | Allied Derelicts emerged from ambush trap array 4354 | -7/Factory | Discovered new exit (range 9) 4363 | -7/Factory | Identified exit to Factory 4378 | -7/Factory | Discovered new exit (range 15) 4476 | -7/Factory | Identified exit to Lower Caves 4517 | -7/Factory | Entered Lower Caves 4633 | -7/Lower Caves | Identified Exp. Sensor Array 4926 | -7/Lower Caves | Encountered a Warlord checkpoint 5424 | -7/Lower Caves | Attracted the attention of an 0b10 checkpoint 5484 | -7/Lower Caves | Discovered new exit (range 10) 5526 | -7/Lower Caves | Identified exit to Lower Caves 5527 | -7/Lower Caves | Entered another Lower Caves area 5610 | -7/Lower Caves | Attacked by a delusional Derelict stockpiling parts 5694 | -7/Lower Caves | Discovered exit to Factory (range 10) 6108 | -7/Lower Caves | Entered a destroyed Warlord outpost 6197 | -7/Lower Caves | Learned 12 Factory zone layouts 6208 | -7/Lower Caves | Discovered new exit (range 14) 6216 | -7/Lower Caves | Learned location of 1 exit from Lower Caves 6234 | -7/Lower Caves | Identified exit to Data Miner 6248 | -7/Lower Caves | Entered Data Miner 6248 | -7/Data Miner | Discovered new exit (range 6) 6283 | -7/Data Miner | Met Data Miner 6322 | -7/Data Miner | Learned location of Section 7 (-2) 6322 | -7/Data Miner | Acquired the access code to Warlord's prototype stash 6347 | -7/Data Miner | Received God Mode back door access code from Data Miner 6387 | -7/Data Miner | Identified exit to Proximity Caves 6389 | -7/Data Miner | Entered Proximity Caves 6697 | -6/Proximity Caves | Learned location of 1 exit from Factory 6771 | -6/Proximity Caves | Learned location of Zion (-6) 6969 | -6/Proximity Caves | Discovered exit to Factory (range 8) 6987 | -6/Proximity Caves | Entered Factory 6987 | -6/Factory | Evolved 2 slots: Utility x2 6988 | -6/Factory | Identified exit to Factory 6989 | -6/Factory | Identified exit to Extension 7074 | -6/Factory | Incoming investigation squad redirected 7144 | -6/Factory | Lost 4 parts (4n) 7370 | -6/Factory | Build established: Mutant 7797 | -6/Factory | Cargo convoy interrupted 7939 | -6/Factory | Found Prototype Launcher 7939 | -6/Factory | Identified Scatter Rocket Array 8080 | -6/Factory | Discovered exit to Extension (range 15) 8122 | -6/Factory | Entered Extension 8187 | -6/Extension | Rescued a captive Derelict 8398 | -6/Extension | Rescued a captive Derelict 8398 | -6/Extension | Rescued a captive Derelict 8470 | -6/Extension | Lost 3 parts (2n1u) 8782 | -6/Extension | Build established: Commander-Mutant 8900 | -6/Extension | Spotted B-75 Beast 8912 | -6/Extension | Allies destroyed B-75 Beast 8931 | -6/Extension | Spotted B-75 Beast 8946 | -6/Extension | Allies destroyed B-75 Beast 8947 | -6/Extension | Disrupted transfer network 8999 | -6/Extension | Lost 6 allies 9028 | -6/Extension | Rescued a captive Derelict 9055 | -6/Extension | Rescued a captive Derelict 9057 | -6/Extension | Rescued a captive Derelict 9206 | -6/Extension | Rescued A7 9291 | -6/Extension | Lost 3 allies 9333 | -6/Extension | Rescued a captive Derelict 9482 | -6/Extension | Discovered exit to Factory (range 10) 9483 | -6/Extension | Discovered new exit (range 6) 9522 | -6/Extension | First assault squad dispatched 9546 | -6/Extension | Identified exit to Cetus 9565 | -6/Extension | Lost 7 allies 9577 | -6/Extension | Disrupted transfer network 9597 | -6/Extension | Entered Cetus 9597 | -6/Cetus | Accompanied by 5 allies (A7) 9602 | -6/Cetus | Acquired a Cetus Manufacturing Module code from A7 9612 | -6/Cetus | Spotted Cetus Guard 9613 | -6/Cetus | Spotted Cetus Guard 9617 | -6/Cetus | Spotted Cetus Guard 9621 | -6/Cetus | Allies destroyed Cetus Guard 9621 | -6/Cetus | Spotted Cetus Guard 9627 | -6/Cetus | Allies destroyed Cetus Guard 9636 | -6/Cetus | Allies destroyed Cetus Guard 9640 | -6/Cetus | Allies destroyed Cetus Guard 9721 | -6/Cetus | Started Cetus Manufacturing Module 9734 | -6/Cetus | Escorted A7 to Cetus Mainframe 9746 | -6/Cetus | Manufactured an Enhanced Grunt 9771 | -6/Cetus | Manufactured an Enhanced Grunt 9796 | -6/Cetus | Manufactured an Enhanced Grunt 9821 | -6/Cetus | Manufactured an Enhanced Grunt 9846 | -6/Cetus | Manufactured an Enhanced Grunt 9861 | -6/Cetus | Discovered new exit (range 16) 9884 | -6/Cetus | Spotted Cetus Guard 9885 | -6/Cetus | Spotted Cetus Guard 9886 | -6/Cetus | Spotted Cetus Guard 9888 | -6/Cetus | Spotted Cetus Guard 9892 | -6/Cetus | Allies destroyed Cetus Guard 9899 | -6/Cetus | Allies destroyed Cetus Guard 9901 | -6/Cetus | Allies destroyed Cetus Guard 9906 | -6/Cetus | Allies destroyed Cetus Guard 9909 | -6/Cetus | Discovered exit to Factory (range 16) 9916 | -6/Cetus | Met Revision 17 9970 | -6/Cetus | Identified exit to Archives 9999 | -6/Cetus | Entered Archives 9999 | -6/Archives | Accompanied by 8 allies (A7) 10004 | -6/Archives | Received a hacking code to weaken MAIN.C 10050 | -6/Archives | Discovered new exit (range 15) 10077 | -6/Archives | Discovered new exit (range 14) 10091 | -6/Archives | Identified exit to Hub_04(d) 10193 | -6/Archives | Build established: Scavenger-Mutant 10257 | -6/Archives | Discovered exit to Factory (range 13) 10493 | -6/Archives | Entered Hub_04(d) 10493 | -6/Hub_04(d) | Accompanied by 6 allies 10590 | -6/Hub_04(d) | Discovered exit to Factory (range 13) 10634 | -6/Hub_04(d) | Found Prototype Device 10635 | -6/Hub_04(d) | Identified Exp. Thermal Shield 10650 | -6/Hub_04(d) | Discovered exit to Factory (range 16) 10689 | -6/Hub_04(d) | Network Hub disabled 10758 | -6/Hub_04(d) | Crushed by falling debris 10843 | -6/Hub_04(d) | First assault squad dispatched 10872 | -6/Hub_04(d) | Incoming assault squad redirected 10881 | -6/Hub_04(d) | Garrison activated, responded to threat 10932 | -6/Hub_04(d) | Spotted Lightning 10997 | -6/Hub_04(d) | Lost 3 allies 11031 | -6/Hub_04(d) | Entered Factory 11031 | -5/Factory | Evolved 2 slots: Utility x2 11130 | -5/Factory | Incoming investigation squad redirected 11569 | -5/Factory | Lost 4 parts (1p2n1u) 11693 | -5/Factory | Fabricated Wave Gun (x2) 11930 | -5/Factory | Found Prototype Launcher 11930 | -5/Factory | Identified Mni. Smartbomb Launcher 11931 | -5/Factory | First assault squad dispatched 12088 | -5/Factory | Lost 4 parts (3n1u) 12139 | -5/Factory | Identified exit to Upper Caves 12254 | -5/Factory | Incoming assault squad redirected 12264 | -5/Factory | Allied Derelicts emerged from ambush trap array 12303 | -5/Factory | Lost 3 allies 12422 | -5/Factory | Lost 4 parts (1p2n1u) 12553 | -5/Factory | Incoming assault squad redirected 12698 | -5/Factory | Found Mni. Smartbomb Launcher 12757 | -5/Factory | Lost 3 parts (2n1u) 12808 | -5/Factory | Discovered new exit (range 11) 12850 | -5/Factory | Incoming assault squad redirected 12919 | -5/Factory | High security lockdown imminent 12999 | -5/Factory | High security lockdown engaged 13079 | -5/Factory | Entered Upper Caves 13101 | -5/Upper Caves | Lost 3 parts (3n) 13103 | -5/Upper Caves | Learned Factory trap positions 13318 | -5/Upper Caves | Crushed by falling debris 13349 | -5/Upper Caves | Lost 3 parts (2u1w) 13614 | -5/Upper Caves | Build established: Mutant 13616 | -5/Upper Caves | Core integrity fell below 50% 13625 | -5/Upper Caves | Found Imp. Powered Armor 13650 | -5/Upper Caves | Attracted the attention of an 0b10 outpost 13663 | -5/Upper Caves | Self-destructed Last Messages --------------- 13613_ Destroyed Imp. Ion Engine. 13615_ A-15 Conveyor destroyed. 13615_ G-67 Veteran destroyed. 13623_ The unstable cave ceiling collapses. 13625_ Acquired Imp. Powered Armor. 13629_ Acquired Adv. System Restoration Module. 13631_ The unstable cave ceiling collapses. 13634_ Acquired Lyr. Medium Armor Plating. 13635_ Acquired 21 matter. 13638_ System corrupted: Heat flow error (+260). 13640_ Acquired Imp. Transmission Jammer. 13643_ Adv. System Restoration Module purges 1% system corruption (8%). 13643_ Adv. System Restoration Module expended. 13644_ Acquired Imp. Force Field. 13645_ The unstable cave ceiling collapses. 13650_ Y-72 Warden: "DETECTED UNIDENTIFIED DERELICT." 13654_ System corrupted: Matter fused (-5). 13657_ The unstable cave ceiling collapses. 13659_ S-27 Virus destroyed. 13663_ Imp. Sensor Array destroyed. Map ----- +----------------------------------------------------+ | ??????????????????????#?#?########?##????#### | | ????????????????????????########?##?##???#### | | ????????????????????????#?#??###?###??####?## | | ???????????????????????????##???####?#??#??## ### | | ???????????????????????????#?#??###"####???## ### | | ??????????????????????????#??###?## ##?##### | | ?????????????????????????#??###### ####?## ### | | ?????????????????????????????#"""##" ##?## #?# | | ?????????????????????????????#"" "" #### #?? | | ?????????????????????????????#" ## #?# | | ?????????????????????????????#" " " # #?? | | ?????????????????????????????# ""##" # ### | | ?????????????????????????????####?## % | | ???????????????????????????????????## | | ??????????????????????##########????#### | | ???????????????????#### # ## ##?####?## | | ???????????????????# ### ##?## | | ??????????????????### # ## #??# | | ??????????????????# # #?# ##?# | | ??????????????????## ### #?# % | | ??????????????????# # ## #?## ! | | ??????????????????# ## ##?## ## | | ???????????????????# # #??## ## | | ???????????????????# # ### ##### | | ???????????????????### [ ##??# | | ??????????????????#### %@ ##??# | | ???????????????# s #??###### ### | | ???????????????###### #?????## ##? | | ??????????????????### # #####??#### ## | | ?????????????????## ##### #??????# # | | ?????????????????# #### ##?????# # | | ?????????????????## ! ####### ## | | ??????????????????# g ##### ####? | | ??????????????????## ##???# ##???? | | ??????????????????? g ?????# ###### # #????? | | ?????????????????? Yl ?????# #???# ## #?? | | ????????????????? #????# #??# ##### #? | | ????????????????#Y ?????# ? #???? #? | | ????????????????# ?????## #######????# #? | | ????????????????###++#??????## ##??????????? # | | ?????????????????????????????# ##????????????# ## | | ?????????????????????????????###??????????????###? | | ?????????????????????????????????????????????????? | | ?????????????????????????????????????????????????? | | ?????????????????????????????????????????????????? | | ?????????????????????????????????????????????????? | | ?????????????????????????????????????????????????? | | ?????????????????????????????????????????????????? | | ?????????????????????????????????????????????????? | | ?????????????????????????????????????????????????? | +----------------------------------------------------+ Best States ------------- Heat Dissipation 78 Coolant Potential 65 Energy Generation 25 Energy Capacity 500 Matter Stores 300 Matter Capacity 300 Sight Range 16 Robot Scan Range 20 Terrain Scan Range 20 Terrain Scan Density 210 Jamming Range 14 Base Temperature (-) 150 Corruption Block 8 Armor Coverage 625 Resistance: KI 25 Resistance: TH 30 Power Shielding 90 Propulsion Shielding 33 Weapon Cycling 15 Evasion (%) 55 Offensive Hacking 14 Defensive Hacking 12 Item Schematics ----------------- Aluminum Leg | -9/Materials | Scanalyzed Assault Rifle | -9/Materials | Scanalyzed Grenade Launcher | -9/Materials | Scanalyzed Lgt. Angular Momentum Engine | -9/Materials | Scanalyzed Sml. Storage Unit | -9/Materials | Scanalyzed Imp. Heat Sink | -9/Materials | Scanalyzed Hvy. Particle Gun | -8/Materials | Scanalyzed Lgt. Armor Plating | -8/Materials | Scanalyzed Adv. Plasma Cannon | -7/Factory | Hacked Combat Drone Bay | -7/Data Miner | Free Lgt. Regenerative Plating | -7/Data Miner | Free Biomechanical Wings | -7/Data Miner | Free Gravity Neutralizer | -7/Data Miner | Free Gui. EMP Blaster | -7/Data Miner | Free Adv. System Shield | -7/Data Miner | Free Wave Gun | -7/Data Miner | Free Imp. Force Field | -7/Data Miner | Free Linear Gravjet | -7/Data Miner | Free Adv. Shield Generator | -6/Factory | Hacked Adv. Coolant Injector | -6/Extension | Hacked Centrium Medium Armor Plating | -5/Factory | Scanalyzed Quantum Reactor | -5/Factory | Scanalyzed Robot Schematics ------------------ B-48 Gladiator | -7/Data Miner | Free G-50 Soldier | -7/Data Miner | Free S-27 Virus | -7/Data Miner | Free R-10 Processor | -7/Data Miner | Free Y-64 Sentinel | -7/Data Miner | Free Y-54 Guardian | -7/Data Miner | Free Fabricated ------------ Wave Gun | x2 | -5/Factory Repaired ---------- Aluminum Leg | 2% | -7/Factory Studied --------- Aluminum Leg | -9/Materials | Hacked Alien Tech Used ----------------- None Achievements -------------- None Challenges ------------ None Game ------ Seed MiniBurstSplitter Manual? 0 Play Time 02:01:09 Cumulative 280.4 hours Start 2025.11.17 @ 12:20:43 End 2025.11.17 @ 15:04:11 Sessions 1 Manual Loads 0 Difficulty Rogue Special Mode None Game No. 301 Rogue 297 Adventurer 3 Explorer 1 Win Type - Total 1 Types 1/0/0/0/0/0/0/0/0/0 Lore% 78 Gallery% 76 Achievement% 60 Wizard Run 0 Options --------- Layout 0 ASCII 0 Keyboard 0 Movement Mouse Keybinds 0 Fullscreen 2 Font 18/SmallcapsGlow Map View 76x50 Zoom Use 0% Tactical HUD 1 Map Filters NONE Filters NONE Steam 1 RUN: a20872d7-d534-4f1c-82cf-864930d76618